Cogmind - Beta 11 X10 @@@ ROGUE MODE // 2022.02.25 @ 01:45:56 Player: raddakar Result: Destroyed by G-47 Trooper with Particle Gun Performance ------------- Evolutions (2) 1000 Regions Visited (6) 1200 Robots Destroyed (37) 185 Value Destroyed (1041) 1041 Prototype IDs (3) 60 Alien Tech Used (0) 0 Bonus (381) 381 TOTAL SCORE: 3867 Bonus ------- Follower Combat Kills 414 Friendly Fire -33 Cogmind --------- Core Integrity 0/550 Matter 300/300 Energy 96/100 System Corruption 0% Temperature Cool (11) Movement Walking (120) Location -8/Storage Parts ------- > --- POWER (1) -------- (None) > --- PROPULSION (2) --- Aluminum Leg Aluminum Leg > --- UTILITY (4) ------ Small Storage Unit Advanced Visual Processing Unit > --- WEAPON (4) ------- Heavy Assault Rifle Katana Katana > --- INVENTORY (8) ---- Aluminum Leg Aluminum Leg High-capacity Matter Pod (200) Experimental Sensor Array High-powered Tractor Beam Missile Launcher Missile Launcher Peak State ------------ > --- POWER ------------ Light Nuclear Core > --- PROPULSION ------- Aluminum Leg Makeshift Leg > --- UTILITY ---------- Improved Heat Sink Improved Heat Sink Small Storage Unit Advanced Visual Processing Unit > --- WEAPON ----------- High-powered Shotgun Missile Launcher Katana Katana > --- INVENTORY -------- Aluminum Leg Wheel Wheel High-capacity Matter Pod Experimental Sensor Array High-powered Tractor Beam Missile Launcher Missile Launcher [Rating: 32] Favorites ----------- Power Light Ion Engine Engine Light Ion Engine Power Core Light Nuclear Core Propulsion Wheel Treads Light Treads Leg Aluminum Leg Wheel Wheel Utility Small Storage Unit Device Improved Heat Sink Storage Small Storage Unit Processor Advanced Visual Processing Unit Protection Propulsion Shielding Weapon Assault Rifle Energy Gun Small Laser Ballistic Gun Assault Rifle Launcher Advanced EMP Blaster Slashing Weapon Katana Build | -11 -10 -10 -10 -9 -8 -8 ------- Run | Scr Mat Min Exi Min Mat Sto Slots Evolved 4 | . . . . . 4 . Power . | . . . . . . . Propulsion . | . . . . . . . Utility 2 | . . . . . 2 . Weapon 2 | . . . . . 2 . Parts Attached 53 | . 6 7 . 7 27 6 Power 9 | . . 2 . 1 5 1 Engine 7 | . . 2 . 1 3 1 Core 2 | . . . . . 2 . Reactor . | . . . . . . . Propulsion 18 | . 4 1 . 2 7 4 Treads 2 | . 2 . . . . . Leg 9 | . . . . . 7 2 Wheel 7 | . 2 1 . 2 . 2 Hover . | . . . . . . . Flight . | . . . . . . . Utility 8 | . 1 1 . . 6 . Device 2 | . . . . . 2 . Storage . | . . . . . . . Processor 2 | . 1 . . . 1 . Hackware . | . . . . . . . Protection 4 | . . 1 . . 3 . Artifact . | . . . . . . . Weapon 18 | . 1 3 . 4 9 1 Energy Gun . | . . . . . . . Energy Cannon . | . . . . . . . Ballistic Gun 14 | . 1 3 . 4 6 . Ballistic Cannon . | . . . . . . . Launcher 2 | . . . . . 1 1 Special Weapon . | . . . . . . . Impact Weapon . | . . . . . . . Slashing Weapon 2 | . . . . . 2 . Piercing Weapon . | . . . . . . . Special Melee Weapon . | . . . . . . . Unidentified Prototypes 3 | . . . . . 1 2 Parts Lost 18 | . . . . . 12 6 Power 3 | . . . . . 2 1 Propulsion 3 | . . . . . 1 2 Utility 4 | . . . . . 2 2 Weapon 8 | . . . . . 7 1 Highest Loss Streak 10 | . . . . . 10 4 To Critical Strikes . | . . . . . . . Average Slot Usage (%) 92 | . 99 99 100 98 80 86 Engine 11 | . 14 14 14 14 5 9 Leg 6 | . 14 . . . 11 13 Wheel 15 | . 4 28 28 28 4 3 Device 2 | . . . . . 6 3 Storage 11 | . 14 14 14 14 9 9 Processor 5 | . 13 1 . . 8 9 Protection 7 | . . 12 14 14 3 2 Ballistic Gun 22 | . 25 27 28 26 19 9 Launcher 2 | . . . . . 3 8 Slashing Weapon 4 | . . . . . 6 18 Naked Turns . | . . . . . . . Heaviest Build 30 | 11 12 15 12 17 29 30 Greatest Support 40 | 20 40 26 20 20 35 30 Greatest Overweight (x) 2 | . 1 . . . 1 2 Average Overweight (x) . | . . . . . . . Largest Inventory Capacity 8 | . 8 8 8 8 8 8 Average Capacity 8 | . 8 8 8 8 8 8 Most Carried 8 | . 8 8 8 8 8 8 Average Carried 7 | . 7 7 7 7 7 7 Final Capacity 8 | 8 8 8 8 8 8 8 Final Carried 8 | 6 8 8 8 8 8 7 Class Distribution -------------------- 61% | Mutant 21% | Scavenger-Mutant 7% | Commander-Mutant 3% | Scavenger-Tank Dominant Class ---------------- Mutant | -10/Materials Mutant | -10/Mines Mutant | -10/Exiles Mutant | -9/Mines Scavenger-Mutant | -8/Materials Scavenger-Mutant | -8/Storage Resources | -11 -10 -10 -10 -9 -8 -8 ----------- Run | Scr Mat Min Exi Min Mat Sto Matter Collected 1294 | 185 147 139 30 153 597 43 Remotely . | . . . . . . . Salvage Created 1435 | . 229 146 . 256 781 23 Parts 78 | . 13 20 . 13 32 . Haulers Intercepted . | . . . . . . . Recyclers Shooed 2 | . 1 . . 1 . . Parts Field Recycled . | . . . . . . . Retrieved Matter . | . . . . . . . Parts Self-Destructed . | . . . . . . . Prevented . | . . . . . . . Kills | -11 -10 -10 -10 -9 -8 -8 ------- Run | Scr Mat Min Exi Min Mat Sto Combat Hostiles Destroyed 28 | . 3 6 . 5 14 . Melee 2 | . . . . . 2 . Guns 26 | . 3 6 . 5 12 . Classes Destroyed 10 | . 3 3 . 2 1 1 Worker 1 | . . 1 . . . . Tunneler 1 | . . . . 1 . . Recycler 3 | . 1 . . 1 1 . Mechanic 1 | . . . . . . 1 Watcher 2 | . 1 . . . 1 . Swarmer 9 | . . 6 . 3 . . Grunt 13 | . 3 . . 1 9 . Duelist 3 | . . . . 1 2 . Sentry 3 | . . . . . 3 . Zionite 1 | . . 1 . . . . Best Kill Streak 9 | . 5 4 . 3 9 1 Combat Bots Only 9 | . 2 3 . 3 9 . Max Kills in Single Turn 1 | . 1 1 . 1 1 1 Gunslinging . | . . . . . . . Exploded . | . . . . . . . Melee 1 | . . . . . 1 . Uniques/NPCs Destroyed . | . . . . . . . Combat | -11 -10 -10 -10 -9 -8 -8 -------- Run | Scr Mat Min Exi Min Mat Sto Damage Taken 3159 | . 147 121 . 264 1953 674 Core 734 | . 60 17 . 95 439 123 Absorbed by Shields . | . . . . . . . Redirected to Shielding 73 | . . 4 . 16 53 . Regen/Repaired (Parts) 28 | . . . . . 28 . Core Remaining (%) 65 | 100 . . . 31 . . Volleys Fired 92 | . 12 14 . 22 43 1 Largest 4 | . 2 2 . 2 4 1 Hottest 80 | . 40 40 . 40 80 23 Shots Fired 198 | . 24 28 . 40 105 1 Gun 198 | . 24 28 . 40 105 1 Cannon . | . . . . . . . Launcher . | . . . . . . . Special . | . . . . . . . Kinetic 198 | . 24 28 . 40 105 1 Thermal . | . . . . . . . Explosive . | . . . . . . . Electromagnetic . | . . . . . . . Robot Hit Streak 9 | . 4 4 . 7 9 . Robot Miss Streak 5 | . 2 4 . 3 5 . Penetration Max . | . . . . . . . Secondary Targets 7 | . . 2 . . 5 . Max Gunslinging Chain 1 | . . 1 . . 1 . Shots Hit Robots 130 | . 17 10 . 24 78 1 Core Hits 59 | . 12 8 . 10 28 1 Critical Kills 1 | . . . . . 1 . Critical Parts Destroyed . | . . . . . . . Critical Strikes 2 | . . . . . 2 . Destroy 1 | . . . . . 1 . Sever 1 | . . . . . 1 . Melee Attacks 18 | . . . . . 14 4 Impact . | . . . . . . . Slashing 18 | . . . . . 14 4 Piercing . | . . . . . . . Sneak Attacks 2 | . . . . . 1 1 Combat Hostiles . | . . . . . . . Follow-up Attacks 2 | . . . . . 2 . Damage Inflicted 2269 | . 235 128 . 299 1502 105 Guns 1799 | . 235 128 . 299 1137 . Cannons . | . . . . . . . Explosions . | . . . . . . . Melee 470 | . . . . . 365 105 Ramming . | . . . . . . . Kinetic 1799 | . 235 128 . 299 1137 . Thermal . | . . . . . . . Explosive . | . . . . . . . Electromagnetic . | . . . . . . . Impact . | . . . . . . . Slashing 470 | . . . . . 365 105 Piercing . | . . . . . . . Highest Corruption . | . . . . . . . Average Corruption . | . . . . . . . Corruption Purged . | . . . . . . . Corruption Blocked . | . . . . . . . Overload Shots . | . . . . . . . Overflow Damage . | . . . . . . . Projectiles . | . . . . . . . Explosions . | . . . . . . . Melee . | . . . . . . . Knockbacks . | . . . . . . . Impact . | . . . . . . . Kinetic . | . . . . . . . Secondary . | . . . . . . . Self-Inflicted Damage . | . . . . . . . Shots . | . . . . . . . Rammed . | . . . . . . . Targets Rammed . | . . . . . . . Kicked . | . . . . . . . Crushed . | . . . . . . . Highest Temperature 259 | . 2 . . . 259 . Average Temperature 85 | . 2 . . . 87 . Received Heat Transfer 1203 | . 84 . . 30 810 279 Siege Activations . | . . . . . . . Robots Corrupted . | . . . . . . . Combat Hostiles . | . . . . . . . Parts Fried . | . . . . . . . Impact Corruptions . | . . . . . . . Robots Melted . | . . . . . . . Combat Hostiles . | . . . . . . . Parts Melted . | . . . . . . . Heat Transferred . | . . . . . . . Parts Sabotaged . | . . . . . . . Parts Stolen . | . . . . . . . Parts Stripped . | . . . . . . . Power Chain Reactions . | . . . . . . . Missiles Intercepted . | . . . . . . . Alert | -11 -10 -10 -10 -9 -8 -8 ------- Run | Scr Mat Min Exi Min Mat Sto Peak Influence 539 | . 82 110 . 130 368 539 Initial 96 | . . 31 . . 50 96 Average 124 | . 27 49 . 55 207 235 Maximum Alert Level 2 | . . . . . 1 2 Low Security (%) 75 | . 100 100 . 100 42 50 Level 1 20 | . . . . . 57 28 Level 2 3 | . . . . . . 21 Level 3 . | . . . . . . . Level 4 . | . . . . . . . Level 5 . | . . . . . . . High Security . | . . . . . . . Max Security . | . . . . . . . Squads Dispatched 5 | . 1 . . . . 4 Investigation 1 | . . . . . . 1 Extermination . | . . . . . . . Reinforcement 2 | . 1 . . . . 1 Assault . | . . . . . . . Garrison 2 | . . . . . . 2 Intercept . | . . . . . . . Construction Impeded . | . . . . . . . Haulers Reinforced . | . . . . . . . Active Scanning Responses . | . . . . . . . Cargo Convoy Interrupts . | . . . . . . . Stealth | -11 -10 -10 -10 -9 -8 -8 --------- Run | Scr Mat Min Exi Min Mat Sto Distress Signals 4 | . . . . . 2 2 Communications Jammed . | . . . . . . . Distress Signals . | . . . . . . . Times Spotted 67 | . 7 6 . 5 28 21 Peak Tracking Total 13 | . 3 3 . 3 13 8 Tactical Retreats 4 | . . . . . 3 1 Traps | -11 -10 -10 -10 -9 -8 -8 ------- Run | Scr Mat Min Exi Min Mat Sto Traps Triggered 1 | . . . . . . 1 Indirectly . | . . . . . . . Trap Hack Attempts . | . . . . . . . Triggered . | . . . . . . . Disarmed . | . . . . . . . Reprogrammed . | . . . . . . . Reused . | . . . . . . . Traps Extracted . | . . . . . . . Installed . | . . . . . . . Triggered . | . . . . . . . Machines | -11 -10 -10 -10 -9 -8 -8 ---------- Run | Scr Mat Min Exi Min Mat Sto Machines Disabled 2 | . . 1 . . . 1 Max in Single Turn 1 | . . 1 . . . 1 Machines Sabotaged . | . . . . . . . Garrisons Compromised . | . . . . . . . Overloaded Fab Kills . | . . . . . . . Hacking | -11 -10 -10 -10 -9 -8 -8 --------- Run | Scr Mat Min Exi Min Mat Sto Machines Accessed 7 | . 1 . . . 2 4 Terminals 6 | . 1 . . . 1 4 Fabricators . | . . . . . . . Repair Stations 1 | . . . . . 1 . Recycling Units . | . . . . . . . Scanalyzers . | . . . . . . . Garrison Access . | . . . . . . . Total Hacks 17 | . 3 . . . 8 6 Successful 7 | . 2 . . . 4 1 Failed 10 | . 1 . . . 4 5 Catastrophic 1 | . . . . . . 1 Database Lockouts . | . . . . . . . Manual 7 | . 1 . . . 3 3 Terminals 13 | . 3 . . . 4 6 Fabricators . | . . . . . . . Repair Stations 4 | . . . . . 4 . Recycling Units . | . . . . . . . Scanalyzers . | . . . . . . . Garrison Access . | . . . . . . . Terminal Hacks 3 | . 1 . . . 1 1 Open Door 1 | . . . . . . 1 Alert Level 1 | . . . . . 1 . Locate Traps 1 | . 1 . . . . . Fabricator Hacks . | . . . . . . . Repair Station Hacks 2 | . . . . . 2 . Scan Component 1 | . . . . . 1 . Repair 1 | . . . . . 1 . Recycling Unit Hacks . | . . . . . . . Scanalyzer . | . . . . . . . Garrison Access Hacks . | . . . . . . . Unauthorized Hacks 2 | . 1 . . . 1 . Terminals 2 | . 1 . . . 1 . Botnet 2 | . 1 . . . 1 . Fabricators . | . . . . . . . Repair Stations . | . . . . . . . Recycling Units . | . . . . . . . Scanalyzers . | . . . . . . . Garrison Access . | . . . . . . . Data Cores Recovered . | . . . . . . . Used . | . . . . . . . Hacking Detections 6 | . 1 . . . 2 3 Full Trace Events . | . . . . . . . Feedback Events . | . . . . . . . Feedback Blocked . | . . . . . . . Robot Schematics Acquired . | . . . . . . . Robots Built . | . . . . . . . Authchips . | . . . . . . . Time . | . . . . . . . Total Robot Build Rating . | . . . . . . . Part Schematics Acquired . | . . . . . . . Parts Built . | . . . . . . . Authchips . | . . . . . . . Time . | . . . . . . . Total Part Build Rating . | . . . . . . . Parts Repaired 1 | . . . . . 1 . Time 26 | . . . . . 26 . Parts Recycled . | . . . . . . . Recycled Matter . | . . . . . . . Retrieved Matter . | . . . . . . . Retrieved Components . | . . . . . . . Parts Scanalyzed . | . . . . . . . Part Schematics Acquired . | . . . . . . . Parts Damaged . | . . . . . . . Bothacking | -11 -10 -10 -10 -9 -8 -8 ------------ Run | Scr Mat Min Exi Min Mat Sto Used RIF Installer . | . . . . . . . Robots Hacked . | . . . . . . . Non-combat . | . . . . . . . Combat . | . . . . . . . Robot Hacks Applied . | . . . . . . . Relay Couplers Released . | . . . . . . . Fabnet Peak Effective % . | . . . . . . . Robots Rewired 1 | . . . . . . 1 Allies Hacked . | . . . . . . . Hacks Repelled . | . . . . . . . Allies | -11 -10 -10 -10 -9 -8 -8 -------- Run | Scr Mat Min Exi Min Mat Sto Total Allies 12 | . . 2 . . . 10 Largest Group 10 | . . 2 . . . 10 Highest-Rated Group 173 | . . 46 . . . 173 Highest-Rated Ally 31 | . . 31 . . . 29 Total Orders . | . . . . . . . Ally Attacks 80 | . . . . . . 80 Total Damage 1099 | . . . . . . 1099 Kills 16 | . . . . . . 16 Allies Corrupted . | . . . . . . . Allies Melted . | . . . . . . . Intel | -11 -10 -10 -10 -9 -8 -8 ------- Run | Scr Mat Min Exi Min Mat Sto Robot Analysis Total . | . . . . . . . Derelict Logs Recovered 2 | . . 1 . 1 . . Drone Launches . | . . . . . . . Drone Recoveries . | . . . . . . . Exploration | -11 -10 -10 -10 -9 -8 -8 ------------- Run | Scr Mat Min Exi Min Mat Sto Turns Passed 1877 | . 209 553 179 163 460 313 Spaces Moved 1413 | 1 124 562 222 112 228 164 Core . | . . . . . . . Treads 9 | . 9 . . . . . Legs 327 | 1 82 . . . 122 122 Wheels 1077 | . 33 562 222 112 106 42 Hover . | . . . . . . . Flight . | . . . . . . . Fastest Speed 80 | 120 90 80 80 80 80 95 Average Speed 96 | 120 115 86 80 80 106 138 Slowest Speed 210 | 120 160 90 80 80 190 210 Overloaded Moves . | . . . . . . . Propulsion Burnouts . | . . . . . . . Robots Hopped . | . . . . . . . Cave-ins Triggered . | . . . . . . . Exploration Rate (%) 40 | 2 29 99 61 31 19 41 Regions Visited 6 Branch Regions 4 Pre-discovered Areas 1 | . . 1 . . . . Known Exits Taken 1 | . 1 . . . . . Unknown Exits Taken 5 | 1 . 1 1 1 1 . Scrap Searched 4 | . . 1 . 3 . . Spaces Dug . | . . . . . . . Terrain Destroyed . | . . . . . . . Melee . | . . . . . . . Projectile . | . . . . . . . AOE . | . . . . . . . Terrain Rammed . | . . . . . . . Walls Destroyed . | . . . . . . . Machines Disabled . | . . . . . . . Actions | -11 -10 -10 -10 -9 -8 -8 --------- Run | Scr Mat Min Exi Min Mat Sto Total 1749 | . 170 604 223 147 359 246 Wait 116 | . 11 10 . . 31 64 Move 1407 | . 123 561 221 111 227 164 Hop . | . . . . . . . Pick Up 25 | . 8 4 1 2 7 3 Fast Attach 26 | . 2 2 . 1 19 2 Attach 18 | . 4 3 . 2 5 4 Detach 4 | . 3 . . . 1 . Swap 9 | . . 2 . 4 3 . Drop 37 | . 7 8 1 5 12 4 Fire 92 | . 12 14 . 22 43 1 Melee 14 | . . . . . 11 3 Ram . | . . . . . . . Kick . | . . . . . . . Crush . | . . . . . . . Escape Stasis . | . . . . . . . Rewire 1 | . . . . . . 1 Trap . | . . . . . . . Miscellaneous . | . . . . . . . Route ------- -11/Scrapyard -10/Materials -10/Mines (discovered 3 exits: [*Mat x2] / [*Exi]) -10/Exiles -9/Mines -8/Materials -8/Storage History --------- Turn | Location | Event 1 | -11/Scrapyard | Discovered new exit (range 0) 1 | -11/Scrapyard | Entered Materials 200 | -10/Materials | Discovered new exit (range 11) 209 | -10/Materials | Identified exit to Mines 210 | -10/Materials | Entered Mines 318 | -10/Mines | Build established: Mutant 364 | -10/Mines | Received a Rocket Launcher from a helpful Derelict 373 | -10/Mines | Learned location of Zion (-6) 375 | -10/Mines | Discovered new exit (range 11) 405 | -10/Mines | Found a damaged Exp. Sensor Array with a note attached 413 | -10/Mines | Found Prototype Device 643 | -10/Mines | Discovered new exit (range 8) 759 | -10/Mines | Deemed a non-threat by the Exiles lab entrance 759 | -10/Mines | Discovered new exit (range 5) 763 | -10/Mines | Entered Exiles 763 | -10/Exiles | Found Exiles lab abandoned 931 | -10/Exiles | Discovered new exit (range 14) 942 | -10/Exiles | Entered Mines 978 | -9/Mines | Core integrity fell below 50% 1054 | -9/Mines | Learned 2 Materials zone layouts 1097 | -9/Mines | Discovered new exit (range 9) 1105 | -9/Mines | Entered Materials 1105 | -8/Materials | Evolved 4 slots: Utility x2, Weapon x2 1150 | -8/Materials | Repaired Propulsion Shielding 1330 | -8/Materials | Destroyed 9 combat bots 1331 | -8/Materials | Core integrity fell below 50% 1358 | -8/Materials | Lost 10 parts (2p1n1u6w) 1540 | -8/Materials | Discovered new exit (range 6) 1565 | -8/Materials | Entered Storage 1647 | -8/Storage | Build established: Scavenger-Mutant 1659 | -8/Storage | Core integrity fell below 20% 1708 | -8/Storage | Assisted by bots powering up and referring to "LRC-V3" 1711 | -8/Storage | Lost 4 parts (2n2u) 1878 | -8/Storage | Destroyed by G-47 Trooper with Particle Gun Last Messages --------------- 01828_ W-25 Informer sends out distress signal. 01834_ Trooper 3c suffers critical hit (Burn). 01834_ S-10 Pest destroyed. 01837_ Trooper 3c suffers critical hit (Burn). 01838_ Trooper 3c heat damages Aluminum Leg. 01838_ Trooper 3c overheating. 01840_ R-06 Scavenger collects Lgt. Ion Engine. 01843_ Y-45 Defender suffers critical hit (Burn). 01843_ Trooper 3c destroyed. 01844_ Connecting with Terminal... 01847_ Y-45 Defender destroyed. 01850_ R-06 Scavenger collects Imp. Heat Sink. 01850_ R-06 Scavenger inserts Aluminum Leg into recycling unit. 01851_ Connecting with Terminal... 01852_ Trooper 3i destroyed. 01853_ R-06 Scavenger collects Beam Rifle. 01856_ R-06 Scavenger collects Particle Gun. 01864_ W-25 Informer sends out distress signal. 01868_ Adv. EMP Blaster destroyed. 01874_ Hvy. Ion Engine destroyed. Map ----- +----------------------------------------------------+ | | | | | | | | | | | ?????????????????????????????????????????????????? | | ?????????????????????????????????????????????????? | | ?????????????????????????????????????????????????? | | ?????????????????????????????????????????????????? | | ?????????????????????????????????????????????????? | | ?????????????????????????????????????????????????? | | ?????????????????????????????????????????????????? | | ?????????????????????????????????????????????????? | | ?????????????????????????????????????????????????? | | ?????????????????????????????????????????????????? | | ?????????????????????????????????????????????????? | | ?????????????????????????????????????????????????? | | ?????????????????????????????????????????????????? | | ?????????????????????????????????????????????????? | | ??????????????????????#######????????????????????? | | ????????????????#+##### #????????????????????? | | ????????????????? #????????????????????? | | ??????????????????? uY +????????????????????? | | ?????????????????????Y #????????????????????? | | ??????????????????????#g Y#????????????????????? | | ?????????????? ????????# @ #?????????????????????? | | ?????????????? ????????#s #?????????????????????? | | ?????????????? ????????# #?????????????????????? | | ?????????????? ????????# #?????????????????????? | | ?????????????? ????????# #?????????????????????? | | ?????????????? ???????# w #?????????????????????? | | ?????????????? ???????# #?????????????????????? | | ?????????????? ???????# #?????????????????????? | | ??????????????#/???????# #?????????????????????? | | ??????????????#=???????# #?????????????????????? | | ??????????????#%???????# ###?????????????????????? | | ??????????????#=#?###### #???????????????????????? | | ??????????????#=#?#"""## #???????????????????????? | | ??????????????#%#?#"T"##Y#???????????????????????? | | ??????????????# ###" "##Y#??????###??????????????? | | ???????######?# a#?????## #######????????? | | ?????### # #?????# #????????? | | ????#""" "" #[% #####?# #????????? | | ????#"R G" /%!""T"" #?#"""" #????????? | | ????#""" "" # """"" #?#"""" ! #????????? | | ?????### ?#%%= #?#"""" #????????? | | ??????# ??#%* #?#"""" #????????? | | ??????###"????# ########## #?# #????????? | | ????????#?????# #????????# #?# ! #????????? | | ??????????????# #????????# #?# #????????? | +----------------------------------------------------+ Best States ------------- Heat Dissipation 59 Energy Generation 18 Energy Capacity 280 Matter Stores 300 Matter Capacity 300 Sight Range 20 Terrain Scan Density 10 Armor Coverage 150 Propulsion Shielding 33 Evasion (%) 55 Recoil Reduction 2 Item Schematics ----------------- None Robot Schematics ------------------ None Fabricated ------------ Nothing Alien Tech Used ----------------- None Achievements -------------- None Challenges ------------ None Game ------ Seed FieldSchematicMinigun Manual? 0 Play Time 00:30:17 Cumulative 117.9 hours Start 2022.02.25 @ 01:17:18 End 2022.02.25 @ 01:45:56 Sessions 1 Manual Loads 0 Difficulty Rogue Special Mode None Game No. 52 Rogue 52 Adventurer 0 Explorer 0 Win Type - Total 1 Types 1/0/0/0/0/0/0/0/0 Lore% 31 Gallery% 56 Achievement% 42 Wizard Run 0 Options --------- ASCII 0 Keyboard 0 Movement Mouse Keybinds 0 Fullscreen 1 Font 18/Terminus Map View 76x50 Tactical HUD 1 Map Filters NONE Filters NONE Steam 1 RUN: fba47139-1ac2-41e9-88f4-8d98da5941a6